Cogmind - Beta 15 @@@ ROGUE MODE // 2025.10.14 @ 23:41:04 Player: Veggiepits Result: Self-destructed Performance ------------- Evolutions (1) 500 Regions Visited (2) 400 Robots Destroyed (18) 90 Value Destroyed (464) 464 Prototype IDs (0) 0 Alien Tech Used (0) 0 Bonus (0) 0 TOTAL SCORE: 1454 Bonus ------- None Cogmind --------- Core Integrity 273/400 Matter 101/500 Energy 250/250 System Corruption 0% Temperature Cool (50) Movement Core (200) Ox3 Location -9/Materials Parts ------- > --- POWER (1) -------- Ion Engine > --- PROPULSION (3) --- (None) > --- UTILITY (3) ------ High-capacity Matter Pod > --- WEAPON (2) ------- Medium Laser > --- INVENTORY (5) ---- Light Ion Engine Light Treads Targeting Computer Small Laser Assault Rifle Peak State ------------ > --- POWER ------------ Ion Engine > --- PROPULSION ------- Aluminum Leg Aluminum Leg Aluminum Leg > --- UTILITY ---------- Small Storage Unit High-capacity Matter Pod Sensor Array > --- WEAPON ----------- Medium Laser Grenade Launcher > --- INVENTORY -------- Ion Engine Light Ion Engine Light Treads Targeting Computer Small Laser Assault Rifle [Rating: 9] Favorites ----------- Power Ion Engine Engine Ion Engine Propulsion Aluminum Leg Leg Aluminum Leg Utility Small Storage Unit Device Sensor Array Storage Small Storage Unit Weapon Medium Laser Energy Gun Medium Laser Launcher Grenade Launcher Build | -11 -10 -9 ------- Run | Yrd Mat Mat Slots Evolved 2 | . . 2 Power . | . . . Propulsion 1 | . . 1 Utility 1 | . . 1 Weapon . | . . . Parts Attached 12 | 6 3 3 Power 1 | 1 . . Engine 1 | 1 . . Core . | . . . Reactor . | . . . Propulsion 4 | 2 . 2 Treads . | . . . Leg 4 | 2 . 2 Wheel . | . . . Hover . | . . . Flight . | . . . Utility 4 | 1 2 1 Device 1 | . . 1 Storage 3 | 1 2 . Processor . | . . . Hackware . | . . . Protection . | . . . Artifact . | . . . Weapon 3 | 2 1 . Energy Gun 2 | 2 . . Energy Cannon . | . . . Ballistic Gun . | . . . Ballistic Cannon . | . . . Launcher 1 | . 1 . Special Weapon . | . . . Impact Weapon . | . . . Slashing Weapon . | . . . Piercing Weapon . | . . . Special Melee Weapon . | . . . Unidentified Prototypes . | . . . Parts Lost 7 | . . 7 Power . | . . . Propulsion 4 | . . 4 Utility 2 | . . 2 Weapon 1 | . . 1 Highest Loss Streak 6 | . . 6 To Critical Strikes . | . . . Average Backups 5 | 1 6 5 Power 1 | . 1 1 Propulsion 1 | . 1 1 Utility . | . . 1 Weapon 1 | . 1 2 Tool/Special . | . . . Unused Backups 7 | . 2 5 Power 2 | . . 2 Propulsion 2 | . 1 1 Utility 2 | . 1 1 Weapon 1 | . . 1 Tool/Special . | . . . Average Slot Usage (%) 92 | . 95 82 Engine 13 | . 14 11 Leg 25 | . 28 19 Device 2 | . . 10 Storage 23 | . 24 21 Energy Gun 15 | . 17 11 Launcher 9 | . 10 8 Peak Build Rating 9 | 6 7 9 Average Rating 6 | 4 6 7 On Entrance 4 | . 6 7 Naked Turns . | . . . Heaviest Build 20 | 13 19 20 Greatest Support 30 | 20 20 30 Greatest Overweight (x) 5 | . . 5 Average Overweight (x) . | . . . Largest Inventory Capacity 8 | 8 8 8 Average Capacity 7 | 7 8 7 Most Carried 8 | 4 8 6 Average Carried 5 | 1 6 5 Final Capacity 8 | 8 8 5 Final Carried 7 | 4 7 5 Class Distribution -------------------- 100% | Mutant Dominant Class ---------------- Mutant | -10/Materials Mutant | -9/Materials Resources | -11 -10 -9 ----------- Run | Yrd Mat Mat Matter Collected 295 | 217 47 31 Remotely . | . . . Salvage Created 327 | . 145 182 Parts 27 | . 14 13 Haulers Intercepted . | . . . Recyclers Shooed . | . . . Parts Field Recycled . | . . . Retrieved Matter . | . . . Parts Self-Destructed . | . . . Prevented . | . . . Kills | -11 -10 -9 ------- Run | Yrd Mat Mat Combat Hostiles Destroyed 15 | . 8 7 Guns 1 | . 1 . AOE 14 | . 7 7 Classes Destroyed 4 | . 4 . Worker 2 | . 1 1 Watcher 1 | . 1 . Swarmer 6 | . 6 . Grunt 9 | . 2 7 Best Kill Streak 6 | . 3 6 Combat Bots Only 5 | . 3 5 Max Kills in Single Turn 3 | . 2 3 Gunslinging . | . . . Exploded 3 | . 2 3 Melee . | . . . Uniques/NPCs Destroyed . | . . . Combat | -11 -10 -9 -------- Run | Yrd Mat Mat Hostile Shots Fired 43 | . 9 34 Missed 6 | . 1 5 Hits 37 | . 8 29 Melee 8 | . . 8 Projectile 29 | . 8 21 Critical Strikes 2 | . . 2 Damage Taken 751 | . 193 558 Core 157 | . 30 127 Absorbed by Shields . | . . . Core Remaining (%) 94 | 100 88 . Volleys Fired 28 | . 11 17 Largest 2 | . 2 2 Hottest 90 | . 90 80 Shots Fired 49 | . 21 28 Gun 30 | . 13 17 Cannon . | . . . Launcher 19 | . 8 11 Special . | . . . Kinetic . | . . . Thermal 30 | . 13 17 Explosive 19 | . 8 11 Electromagnetic . | . . . Robot Hit Streak 7 | . 3 7 Robot Miss Streak 9 | . 9 3 Penetration Max . | . . . Secondary Targets . | . . . Shots Hit Robots 19 | . 5 14 Core Hits 33 | . 12 21 Critical Kills . | . . . Critical Parts Destroyed . | . . . Critical Strikes . | . . . Melee Attacks . | . . . Impact . | . . . Slashing . | . . . Piercing . | . . . Sneak Attacks . | . . . Combat Hostiles . | . . . Follow-up Attacks . | . . . Damage Inflicted 958 | 14 449 495 Guns 138 | . 25 113 Cannons . | . . . Explosions 806 | . 424 382 Melee . | . . . Ramming 14 | 14 . . Kinetic . | . . . Thermal 138 | . 25 113 Explosive 806 | . 424 382 Electromagnetic . | . . . Impact . | . . . Slashing . | . . . Piercing . | . . . Highest Corruption . | . . . Average Corruption . | . . . Corruption Purged . | . . . Corruption Blocked . | . . . Overload Shots . | . . . Overflow Damage 15 | . . 15 Projectiles . | . . . Explosions 15 | . . 15 Melee . | . . . Knockbacks . | . . . Impact . | . . . Kinetic . | . . . Secondary . | . . . Self-Inflicted Damage 186 | . 123 63 Shots 8 | . 5 3 Rammed . | . . . Targets Rammed 3 | 3 . . Kicked 3 | 3 . . Crushed . | . . . Highest Temperature 103 | . 60 103 Average Temperature 35 | . 23 44 Received Heat Transfer 132 | . 6 126 Siege Activations . | . . . Martial Activations . | . . . Shielding Activations . | . . . Robots Disrupted . | . . . Combat Hostiles . | . . . Robots Corrupted . | . . . Combat Hostiles . | . . . Parts Fried . | . . . Impact Corruptions . | . . . Robots Melted . | . . . Combat Hostiles . | . . . Parts Melted . | . . . Heat Transferred 407 | . 74 333 Parts Sabotaged . | . . . Parts Stolen . | . . . Parts Stripped . | . . . Power Chain Reactions . | . . . Alert | -11 -10 -9 ------- Run | Yrd Mat Mat Maximum Alert Level 1 | . 1 1 Low Security (%) 91 | 100 89 95 Level 1 8 | . 10 4 Level 2 . | . . . Level 3 . | . . . Level 4 . | . . . Level 5 . | . . . High Security . | . . . Max Security . | . . . Peak Influence 222 | . 222 203 Initial 82 | . . 82 Average 71 | . 76 101 Influence Increases 536 | . 325 211 Destroy 0b10 Robot/C 300 | . 160 140 Destroy 0b10 Robot/NC 15 | . 10 5 Destroy Leader 52 | . 32 20 Successful Hack 13 | . 13 . Disable Machine 120 | . 90 30 Destroy Structure 36 | . 20 16 Influence Decreases 383 | . 129 254 Entered New Map 114 | . . 114 Time Decay 199 | . 129 70 Lost Part 70 | . . 70 Squads Dispatched 3 | . 1 2 Investigation . | . . . Extermination . | . . . Reinforcement 3 | . 1 2 Assault . | . . . Garrison . | . . . Intercept . | . . . Searches Triggered . | . . . Construction Impeded . | . . . Haulers Reinforced . | . . . Active Scanning Responses . | . . . Cargo Convoy Interrupts . | . . . Stealth | -11 -10 -9 --------- Run | Yrd Mat Mat Distress Signals 3 | . 1 2 Communications Jammed . | . . . Distress Signals . | . . . Times Spotted 24 | . 14 10 Peak Tracking Total 7 | . 3 7 Tactical Retreats . | . . . Traps | -11 -10 -9 ------- Run | Yrd Mat Mat Traps Triggered 2 | . 2 . Indirectly . | . . . Trap Hack Attempts . | . . . Triggered . | . . . Disarmed . | . . . Reprogrammed . | . . . Reused . | . . . Traps Extracted . | . . . Installed . | . . . Triggered . | . . . Machines | -11 -10 -9 ---------- Run | Yrd Mat Mat Machines Disabled 8 | . 6 2 Max in Single Turn 2 | . 2 1 Machines Repaired . | . . . Machines Dismantled . | . . . Machines Sabotaged . | . . . Overloaded Fab Kills . | . . . Hacking | -11 -10 -9 --------- Run | Yrd Mat Mat Machines Accessed 2 | . 2 . Terminals 2 | . 2 . Fabricators . | . . . Repair Stations . | . . . Recycling Units . | . . . Scanalyzers . | . . . Garrison Access . | . . . Total Hacks 7 | . 7 . Successful 5 | . 5 . Failed 2 | . 2 . Catastrophic . | . . . Database Lockouts . | . . . Manual 1 | . 1 . Terminals 7 | . 7 . Fabricators . | . . . Repair Stations . | . . . Recycling Units . | . . . Scanalyzers . | . . . Garrison Access . | . . . Terminal Hacks 5 | . 5 . Record 2 | . 2 . Dispatch Records 1 | . 1 . Hauler Manifests 1 | . 1 . Zone Layout 1 | . 1 . Fabricator Hacks . | . . . Repair Station Hacks . | . . . Recycling Unit Hacks . | . . . Scanalyzer . | . . . Garrison Access Hacks . | . . . Unauthorized Hacks . | . . . Terminals . | . . . Fabricators . | . . . Repair Stations . | . . . Recycling Units . | . . . Scanalyzers . | . . . Garrison Access . | . . . Data Cores Recovered . | . . . Used . | . . . Hacking Detections 1 | . 1 . Full Trace Events . | . . . Feedback Events . | . . . Feedback Blocked . | . . . Robot Schematics Acquired . | . . . Robots Built . | . . . Authchips . | . . . Time . | . . . Total Robot Build Rating . | . . . Part Schematics Acquired . | . . . Parts Built . | . . . Authchips . | . . . Time . | . . . Total Part Build Rating . | . . . Parts Repaired . | . . . Time . | . . . Parts Recycled . | . . . Recycled Matter . | . . . Retrieved Matter . | . . . Retrieved Components . | . . . Parts Scanalyzed . | . . . Part Schematics Acquired . | . . . Parts Damaged . | . . . Bothacking | -11 -10 -9 ------------ Run | Yrd Mat Mat Used RIF Installer . | . . . Robots Hacked . | . . . Non-combat . | . . . Combat . | . . . Robot Hacks Applied . | . . . Relay Couplers Released . | . . . Fabnet Peak Effective % . | . . . Robots Rewired . | . . . Allies Hacked . | . . . Hacks Repelled . | . . . Allies | -11 -10 -9 -------- Run | Yrd Mat Mat Total Allies . | . . . Largest Group . | . . . Highest-Rated Group . | . . . Highest-Rated Ally . | . . . Total Orders . | . . . Ally Attacks . | . . . Total Damage . | . . . Kills . | . . . Allies Corrupted . | . . . Allies Melted . | . . . Intel | -11 -10 -9 ------- Run | Yrd Mat Mat Active Infowar (turns) 134 | . . 134 Sensors 134 | . . 134 Robot Analysis Total . | . . . Derelict Logs Recovered . | . . . Drone Launches . | . . . Drone Recoveries . | . . . Exploration | -11 -10 -9 ------------- Run | Yrd Mat Mat Turns Passed 660 | 95 420 145 Spaces Moved 453 | 68 310 75 Core 5 | 4 . 1 Treads . | . . . Legs 448 | 64 310 74 Wheels . | . . . Hover . | . . . Flight . | . . . Fastest Speed 50 | 50 120 120 Average Speed 120 | 115 120 127 Slowest Speed 300 | 120 120 300 Overloaded Moves . | . . . Propulsion Burnouts . | . . . Robots Hopped . | . . . Potential Cave-ins . | . . . Cave-ins Triggered . | . . . Exploration Rate (%) 23 | 5 53 12 Regions Visited 2 Branch Regions . Pre-discovered Areas . | . . . Known Exits Taken . | . . . Unknown Exits Taken 2 | 1 1 . Scrap Searched . | . . . Spaces Dug . | . . . Terrain Destroyed 37 | . 20 17 Melee . | . . . Projectile . | . . . AOE 37 | . 20 17 Terrain Rammed . | . . . Walls Destroyed . | . . . Machines Disabled . | . . . Actions | -11 -10 -9 --------- Run | Yrd Mat Mat Total 510 | 80 335 95 Wait . | . . . Move 451 | 67 309 75 Hop . | . . . Pick Up 10 | 4 6 . Fast Attach 12 | 6 4 2 Attach 1 | . . 1 Detach . | . . . Swap 2 | . 2 . Drop 3 | . 3 . Fire 28 | . 11 17 Melee . | . . . Ram . | . . . Kick 3 | 3 . . Crush . | . . . Escape Stasis . | . . . Rewire . | . . . Trap . | . . . Miscellaneous . | . . . Route ------- -11/Scrapyard -10/Materials (discovered 2 exits: [*Mat x2]) -9/Materials (discovered 1 exit: [*Min]) History --------- Turn | Location | Event 9 | -11/Scrapyard | Discovered new exit (range 16) 96 | -11/Scrapyard | Entered Materials 132 | -10/Materials | Discovered new exit (range 13) 300 | -10/Materials | Build established: Mutant 445 | -10/Materials | Discovered new exit (range 13) 516 | -10/Materials | Entered another Materials area 516 | -9/Materials | Evolved 2 slots: Propulsion x1, Utility x1 562 | -9/Materials | Discovered new exit (range 6) 661 | -9/Materials | Self-destructed Last Messages --------------- 00611_ ALERT: Hostiles spotted, dispatching reinforcements to Terminal M005. 00613_ K-01 Serf collects debris. 00614_ R-06 Scavenger collects Heat Sink. 00614_ W-16 Scout sends out distress signal. 00616_ K-01 Serf destroyed. 00616_ Pressure Siphon disabled. 00628_ G-34 Mercenary destroyed. 00632_ The unstable cave ceiling collapses. 00635_ G-34 Mercenary destroyed. 00639_ Aluminum Leg destroyed. 00639_ Destroyed Aluminum Leg. 00639_ G-34 Mercenary destroyed. 00639_ Grenade Launcher destroyed. 00642_ Aluminum Leg destroyed. 00644_ The unstable cave ceiling collapses. 00647_ Aluminum Leg destroyed. 00647_ U-05 Engineer lays Concrete. 00650_ Sensor Array destroyed. 00655_ Sml. Storage Unit destroyed. Map ----- +----------------------------------------------------+ | ?????????????????????????????????????????????????? | | ?????????????????????????????????????????????????? | | ?????????????????????????????????????????????????? | | ?????????????????????????????????????????????????? | | ?????????????????????????????????????????????????? | | ?????????????????????????????????????????????????? | | ?????????????????????????????????????????????????? | | ?????????????????????????????????????????????????? | | ?????????????????????????????????????????????????? | | ?????????????????????????????????????????????????? | | ?????????????????????????????????????????????????? | | ???????????????????????????###???????????????????? | | ???????????????????????? ?? ??????????????? | | ??????????????????###### ? ?????????? | | ????????????? ??? ??????? | | ????????????? ?? ????????? | | ????????????? ????????? | | ?????????????""" """ """ " ""?????????"" | | ?????????????""" """ """ ""?????" """ | | ??????????#? """ """ """ ""???"?" """ | | ????????### """ """ """ """ """ """ | | ??????? = | | ??????? = % | | ??????? g = ???? | | ??????????????###+### ==#!% ##+#####????# | | ???????????# = [l@ ## #????# | | ???????????+ """ ## #????# | | ?????????????? """ """ # # #????#### | | ?????????????? """ #""" # + #?????# | | ??????????????? #""" # ## < #?????# | | ?????????????? """?# + ## #?????# | | ????????????? ""??############# #?????# | | ???????????? "???????????????# #?????# | | ????????????? ??????????????????# #?????# | | ???????????????????????????#######+############### | | ???????????????????? | | ???????????????????????????####################### | | ?????????????????????????????????????????????????? | | ?????????????????????????????????????????????????? | | ?????????????????????????????????????????????????? | | | | | | | | | | | | | | | | | | | | | +----------------------------------------------------+ Best States ------------- Heat Dissipation 28 Energy Generation 10 Energy Capacity 250 Matter Stores 268 Matter Capacity 500 Sight Range 16 Robot Scan Range 14 Terrain Scan Density 10 Evasion (%) 55 Item Schematics ----------------- None Robot Schematics ------------------ None Fabricated ------------ Nothing Repaired ---------- Nothing Alien Tech Used ----------------- None Achievements -------------- Let's See Who's Tougher Shopping List Challenges ------------ None Game ------ Seed SensorNetworkNeutralizer Manual? 0 Play Time 00:07:40 Cumulative 3.1 hours Start 2025.10.14 @ 02:49:42 End 2025.10.14 @ 23:41:04 Sessions 3 Manual Loads 0 Difficulty Rogue Special Mode None Game No. 8 Rogue 8 Adventurer 0 Explorer 0 Win Type - Total 0 Types 0/0/0/0/0/0/0/0/0/0 Lore% 0 Gallery% 6 Achievement% 5 Wizard Run 0 Options --------- Layout 1 ASCII 0 Keyboard 1 Movement Numpad Keybinds 0 Fullscreen 0 Font 28/SmallcapsGlow Map View 77x35 Zoom Use 0% Tactical HUD 1 Map Filters NONE Filters NONE Steam 1 RUN: 79a43012-ab88-47c4-bf19-758f2f129333